fUSD/lending_fUSD_20250115
["ID","MTS","AMOUNT","RATE_DAILY","PERIOD"]
[349026250,1736941868379,-1500.0,0.0002287,2]
[349026251,1736941868390,-1500.0,0.0002287,2]
[349026252,1736941868400,-150.0,0.0002287,2]
[349026253,1736941868410,-150.0,0.00022871,2]
[349026254,1736941868420,-150.0,0.00022874,2]
[349026255,1736941868430,-150.0,0.00022881,2]
[349026256,1736941868439,-500.0,0.00022881,2]
[349026257,1736941868449,-1414.98978279,0.00022897,2]
[349026258,1736941868459,-150.0,0.00022897,2]
[349026259,1736941868468,-300.0,0.00022899,2]
[349026260,1736941868478,-150.0,0.00022901,2]
[349026261,1736941868488,-150.0,0.00022902,2]
[349026262,1736941868498,-150.0,0.0002291,2]
[349026263,1736941868508,-300.0,0.00022914,2]
[349026264,1736941868518,-150.0,0.00022916,2]
[349026265,1736941868528,-500.0,0.00022917,2]
[349026266,1736941868538,-395.98,0.00022917,2]
[349026267,1736941868547,-1000.0,0.00022929,30]
[349026268,1736941868557,-150.0,0.00022934,2]
[349026269,1736941868568,-150.0,0.00022937,2]
[349026270,1736941868579,-150.0,0.00022937,2]
[349026271,1736941868588,-150.0,0.0002294,2]
[349026272,1736941868598,-150.0,0.00022943,2]
[349026273,1736941868608,-150.0,0.00022951,2]
[349026274,1736941868617,-300.0,0.00022956,2]
[349026275,1736941868627,-1500.0,0.00022959,2]
[349026276,1736941868637,-1500.0,0.00022963,2]
[349026277,1736941868647,-500.0,0.0002298,2]
[349026278,1736941868657,-865.22,0.0002298,2]
[349026279,1736941868666,-500.0,0.0002298,2]
[349026280,1736941868675,-154.806351,0.0002298,2]
[349026281,1736941868685,-1046.21,0.0002298,2]
[349026282,1736941868695,-155.294633,0.0002298,2]
[349026283,1736941868705,-500.0,0.0002298,2]
[349026284,1736941868715,-945.23,0.0002298,2]
[349026285,1736941868725,-500.0,0.0002298,2]
[349026286,1736941868735,-500.0,0.0002298,2]
[349026287,1736941868745,-500.0,0.0002298,2]
[349026288,1736941868754,-723.59,0.0002298,2]
[349026289,1736941868764,-500.0,0.0002298,2]
[349026290,1736941868777,-1436.33,0.0002298,2]
[349026291,1736941868787,-1203.26,0.0002298,2]
[349026292,1736941868798,-643.06,0.0002298,2]
[349026293,1736941868809,-740.16,0.0002298,2]
[349026294,1736941868819,-500.0,0.00022981,2]
[349026295,1736941868829,-500.0,0.00022981,2]
[349026296,1736941868839,-500.0,0.00022981,2]
[349026297,1736941868848,-150.0,0.00022987,2]
[349026298,1736941868858,-150.0,0.00022991,2]
[349026299,1736941869010,-150.0,0.00022992,2]
[349026300,1736941869020,-150.0,0.00022992,2]
[349026301,1736941869030,-645.88,0.00022995,2]
[349026302,1736941869039,-500.0,0.00022995,2]
[349026303,1736941869048,-247.74,0.00022995,2]
[349026304,1736941869057,-500.0,0.00022995,2]
[349026305,1736941869068,-500.0,0.00022995,2]
[349026306,1736941869078,-300.0,0.00022995,2]
[349026307,1736941869087,-150.0,0.00022996,2]
[349026308,1736941869097,-5069.91826274,0.00023,2]
[349026309,1736941869107,-1800.0,0.00023,24]
[349026310,1736941869116,-320.0,0.00023,10]
[349026311,1736941869128,-1000.0,0.00023,14]
[349026312,1736941869138,-500.0,0.00023,5]
[349026313,1736941869147,-915.42877347,0.00023,2]
[349026314,1736941869157,-5000.0,0.00023,7]
[349026315,1736941869166,-3000.0,0.00023,7]
[349026316,1736941869177,-52000.00999401,0.00023,10]
[349026317,1736941869186,-500.0,0.00023,2]
[349026318,1736941869197,-500.0,0.00023,2]
[349026319,1736941869208,-500.0,0.00023,2]
[349026320,1736941869218,-500.0,0.00023,2]
[349026321,1736941869227,-500.0,0.00023,2]
[349026322,1736941869236,-10000.0,0.00023,12]
[349026323,1736941869246,-1877.29525282,0.00023,10]
[349026324,1736941869256,-230.76802651,0.00023,7]
[349026325,1736941869265,-252.61264715,0.00023,3]
[349026326,1736941869275,-1058.0,0.00023,2]
[349026327,1736941869284,-1058.0,0.00023,2]
[349026328,1736941869294,-850.0,0.00023,2]
[349026329,1736941869303,-166.0,0.00023,2]
[349026330,1736941869318,-1058.0,0.00023,2]
[349026331,1736941869327,-2110.0,0.00023,2]
[349026332,1736941869337,-177.0,0.00023,2]
[349026333,1736941869347,-367.50708245,0.0002301,2]
[349026334,1736941869358,-1000.0,0.00023014,30]
[349026335,1736941869367,-1000.0,0.00023098,30]
[349026336,1736941869377,-500.0,0.00023155,2]
[349026337,1736941869387,-1000.0,0.00023182,30]
[349026338,1736941869398,-500.0,0.00023191,2]
[349026339,1736941869408,-49873.96717797,0.000232,2]
[349026340,1736941869418,-150.0,0.00023216,2]
[349026341,1736941869428,-567.84815023,0.0002322,2]
[349026342,1736941869439,-500.0,0.00023254,2]
[349026343,1736941869449,-865.22,0.00023254,2]
[349026344,1736941869458,-500.0,0.00023254,2]
[349026345,1736941869468,-154.806351,0.00023254,2]
[349026346,1736941869477,-1046.21,0.00023254,2]
[349026347,1736941869486,-500.0,0.00023254,2]
[349026348,1736941869495,-945.23,0.00023254,2]
[349026349,1736941869504,-500.0,0.00023254,2]
[349026350,1736941869515,-500.0,0.00023254,2]
[349026351,1736941869525,-500.0,0.00023254,2]
[349026352,1736941869535,-723.59,0.00023254,2]
[349026353,1736941869545,-500.0,0.00023254,2]
[349026354,1736941869555,-1436.33,0.00023254,2]
[349026355,1736941869570,-1203.26,0.00023254,2]
[349026356,1736941869580,-643.06,0.00023254,2]
[349026357,1736941869590,-740.16,0.00023254,2]
[349026358,1736941869600,-364.89116464,0.00023255,2]
[349026359,1736941869610,-500.0,0.00023255,2]
[349026360,1736941869620,-500.0,0.00023255,2]
[349026361,1736941869630,-1000.0,0.00023267,30]
[349026362,1736941869640,-500.0,0.00023269,2]
[349026363,1736941869650,-500.0,0.00023269,2]
[349026364,1736941869660,-199.01,0.00023269,2]
[349026365,1736941869671,-166.0,0.00023288,2]
[349026366,1736941869681,-1000.0,0.00023351,30]
[349026367,1736941869691,-1000.0,0.0002337,2]
[349026368,1736941869701,-2037.93189439,0.000234,2]
[349026369,1736941869711,-674.59206943,0.000234,2]
[349026370,1736941869721,-500.0,0.00023429,2]
[349026371,1736941869731,-1000.0,0.00023435,30]
[349026372,1736941869740,-500.0,0.00023465,2]
[349026373,1736941869751,-382.69,0.0002349,2]
[349026374,1736941869760,-200.0,0.000235,2]
[349026375,1736941869769,-20000.0,0.000235,15]
[349026376,1736941869780,-2110.0,0.000235,2]
[349026377,1736941869789,-1000.0,0.00023519,30]
[349026378,1736941869799,-500.0,0.00023528,2]
[349026379,1736941869809,-865.22,0.00023528,2]
[349026380,1736941869822,-500.0,0.00023528,2]
[349026381,1736941869832,-1046.21,0.00023528,2]
[349026382,1736941869841,-155.294633,0.00023528,2]
[349026383,1736941869850,-500.0,0.00023528,2]
[349026384,1736941869859,-945.23,0.00023528,2]
[349026385,1736941869870,-620.77,0.00023528,2]
[349026386,1736941869879,-500.0,0.00023528,2]
[349026387,1736941869890,-500.0,0.00023528,2]
[349026388,1736941869899,-723.59,0.00023528,2]
[349026389,1736941869909,-500.0,0.00023528,2]
[349026390,1736941869919,-1436.33,0.00023528,2]
[349026391,1736941869928,-1203.26,0.00023528,2]
[349026392,1736941869938,-643.06,0.00023528,2]
[349026393,1736941869949,-740.16,0.00023528,2]
[349026394,1736941869959,-500.0,0.00023529,2]
[349026395,1736941869969,-500.0,0.00023529,2]
[349026396,1736941869978,-371.99,0.00023543,2]
[349026397,1736941869988,-381.1,0.00023543,2]
[349026398,1736941869997,-1633.40342782,0.0002359,2]
[349026399,1736941870007,-481.8426913,0.00023594,2]
[349026400,1736941870016,-3864.5062208,0.00023594,2]
[349026401,1736941870026,-1000.0,0.00023604,30]
[349026402,1736941870036,-719185.35415019,0.0002361,7]
[349026403,1736941870046,-151.0,0.0002361,7]
[349026404,1736941870055,-151.0,0.0002361,7]
[349026405,1736941870066,-151.0,0.0002361,7]
[349026406,1736941870075,-151.0,0.0002361,7]
[349026407,1736941870086,-151.0,0.0002361,7]
[349026408,1736941870095,-151.0,0.0002361,7]
[349026409,1736941870105,-151.0,0.0002361,7]
[349026410,1736941870116,-823.870216,0.0002361,7]
[349026411,1736941870128,-823.870216,0.0002361,7]
[349026412,1736941870139,-555.559288,0.0002361,7]
[349026413,1736941870149,-195.777335,0.0002361,7]
[349026414,1736941870158,-195.777335,0.0002361,7]
[349026415,1736941870171,-151.0,0.0002361,7]
[349026416,1736941870181,-204.189998,0.0002361,7]
[349026417,1736941870191,-204.189998,0.0002361,7]
[349026418,1736941870201,-151.0,0.0002361,7]
[349026419,1736941870213,-151.0,0.0002361,7]
[349026420,1736941870223,-556.399308,0.0002361,7]
[349026421,1736941870233,-556.399308,0.0002361,7]
[349026422,1736941870243,-151.0,0.0002361,7]
[349026423,1736941870254,-151.0,0.0002361,7]
[349026424,1736941870265,-151.0,0.0002361,7]
[349026425,1736941870274,-151.0,0.0002361,7]
[349026426,1736941870284,-5400.0,0.0002361,7]
[349026427,1736941870293,-151.0,0.0002361,7]
[349026428,1736941870303,-5400.0,0.0002361,7]
[349026429,1736941870314,-151.0,0.0002361,7]
[349026430,1736941870325,-209.867463,0.0002361,7]
[349026431,1736941870335,-151.0,0.0002361,7]
[349026432,1736941870345,-1000.0,0.00023688,30]
[349026433,1736941870354,-3761.19,0.000237,7]
[349026434,1736941870364,-500.0,0.00023703,2]
[349026435,1736941870374,-150.0,0.0002372,2]
[349026436,1736941870384,-500.0,0.00023739,2]
[349026437,1736941870393,-1000.0,0.00023772,30]
[349026438,1736941870403,-3000.0,0.000238,2]
[349026439,1736941870413,-500.0,0.00023802,2]
[349026440,1736941870423,-865.22,0.00023802,2]
[349026441,1736941870434,-421.92,0.00023802,2]
[349026442,1736941870445,-154.806351,0.00023802,2]
[349026443,1736941870455,-1046.21,0.00023802,2]
[349026444,1736941870465,-155.294633,0.00023802,2]
[349026445,1736941870475,-167.767433,0.00023802,2]
[349026446,1736941870484,-163.831251,0.00023802,2]
[349026447,1736941870493,-500.0,0.00023802,2]
[349026448,1736941870503,-945.23,0.00023802,2]
[349026449,1736941870514,-500.0,0.00023802,2]
[349026450,1736941870524,-500.0,0.00023802,2]
[349026451,1736941870534,-723.59,0.00023802,2]
[349026452,1736941870544,-500.0,0.00023802,2]
[349026453,1736941870554,-1436.33,0.00023802,2]
[349026454,1736941870565,-1203.26,0.00023802,2]
[349026455,1736941870574,-643.06,0.00023802,2]
[349026456,1736941870584,-740.16,0.00023802,2]
[349026457,1736941870594,-648.06,0.00023803,2]
[349026458,1736941870604,-500.0,0.00023803,2]
[349026459,1736941870614,-457.88,0.00023836,2]
[349026460,1736941870624,-1000.0,0.00023857,30]
[349026461,1736941870634,-152.80921015,0.000239,2]
[349026462,1736941870643,-1000.0,0.00023941,30]
[349026463,1736941870653,-619.78,0.00023977,2]
[349026464,1736941870663,-29700.79293226,0.00023999,2]
[349026465,1736941870672,-975.50410598,0.00024,2]
[349026466,1736941870682,-80454.88063467,0.00024,2]
[349026467,1736941870692,-76157.08690778,0.00024,2]
[349026468,1736941870701,-1800.0,0.00024,25]
[349026469,1736941870711,-302.23478629,0.00024,20]
[349026470,1736941870720,-1951.62658508,0.00024,2]
[349026471,1736941870730,-9705.33936446,0.00024,14]
[349026472,1736941870739,-28184.29402076,0.00024,7]
[349026473,1736941870748,-1737.61478775,0.00024,30]
[349026474,1736941870757,-1500.0,0.00024,15]
[349026475,1736941870766,-250.0,0.00024,120]
[349026476,1736941870776,-593.69,0.00024,31]
[349026477,1736941870786,-593.69,0.00024,31]
[349026478,1736941870796,-593.69,0.00024,31]
[349026479,1736941870805,-593.69,0.00024,31]
[349026480,1736941870817,-593.69,0.00024,31]
[349026481,1736941870826,-593.69,0.00024,31]
[349026482,1736941870836,-593.69,0.00024,31]
[349026483,1736941870847,-593.69,0.00024,31]
[349026484,1736941870858,-593.69,0.00024,31]
[349026485,1736941870867,-593.69,0.00024,31]
[349026486,1736941870878,-593.69,0.00024,31]
[349026487,1736941870889,-593.69,0.00024,31]
[349026488,1736941870899,-593.69,0.00024,31]
[349026489,1736941870909,-593.69,0.00024,31]
[349026490,1736941870918,-593.69,0.00024,31]
[349026491,1736941870928,-593.69,0.00024,31]
[349026492,1736941870937,-593.69,0.00024,31]
[349026493,1736941870946,-593.69,0.00024,31]
[349026494,1736941870956,-593.69,0.00024,31]
[349026495,1736941870966,-593.69,0.00024,31]
[349026496,1736941870976,-593.69,0.00024,31]
[349026497,1736941870985,-593.69,0.00024,31]
[349026498,1736941870994,-593.69,0.00024,31]
[349026499,1736941871004,-593.69,0.00024,31]
[349026500,1736941871014,-2110.0,0.00024,2]
[349026501,1736941871023,-500.0,0.00024013,2]
[349026502,1736941871033,-778.5053317,0.0002402,2]
[349026503,1736941871043,-1000.0,0.00024025,30]
[349026504,1736941871054,-152.0,0.00024037,4]
[349026505,1736941871065,-500.0,0.00024076,2]
[349026506,1736941871074,-865.22,0.00024076,2]
[349026507,1736941871083,-154.806351,0.00024076,2]
[349026508,1736941871093,-1046.21,0.00024076,2]
[349026509,1736941871102,-500.0,0.00024076,2]
[349026510,1736941871112,-945.23,0.00024076,2]
[349026511,1736941871123,-500.0,0.00024076,2]
[349026512,1736941871137,-500.0,0.00024076,2]
[349026513,1736941871147,-723.59,0.00024076,2]
[349026514,1736941871156,-500.0,0.00024076,2]
[349026515,1736941871167,-1436.33,0.00024076,2]
[349026516,1736941871176,-1203.26,0.00024076,2]
[349026517,1736941871186,-643.06,0.00024076,2]
[349026518,1736941871196,-740.16,0.00024076,2]
[349026519,1736941871207,-500.0,0.00024077,2]
[349026520,1736941871217,-1000.0,0.0002411,30]
[349026521,1736941871227,-1058.0,0.0002415,2]
[349026522,1736941871237,-1058.0,0.0002415,2]
[349026523,1736941871247,-17714.28576457,0.00024153,120]
[349026524,1736941871257,-166.0,0.00024164,2]
[349026525,1736941871268,-177.0,0.00024164,2]
[349026526,1736941871277,-1000.0,0.00024194,30]
[349026527,1736941871287,-403.00705572,0.0002421,2]
[349026528,1736941871296,-3531.31519493,0.0002421,2]
[349026529,1736941871306,-150.0,0.00024225,2]
[349026530,1736941871318,-1000.0,0.00024278,30]
[349026531,1736941871328,-500.0,0.00024287,2]
[349026532,1736941871338,-1633.40342782,0.00024314,2]
[349026533,1736941871347,-500.0,0.0002435,2]
[349026534,1736941871357,-865.22,0.0002435,2]
[349026535,1736941871366,-154.806351,0.0002435,2]
[349026536,1736941871375,-1046.21,0.0002435,2]
[349026537,1736941871385,-155.294633,0.0002435,2]
[349026538,1736941871395,-439.55,0.0002435,2]
[349026539,1736941871405,-945.23,0.0002435,2]
[349026540,1736941871415,-500.0,0.0002435,2]
[349026541,1736941871424,-500.0,0.0002435,2]
[349026542,1736941871434,-723.59,0.0002435,2]
[349026543,1736941871444,-500.0,0.0002435,2]
[349026544,1736941871454,-1436.33,0.0002435,2]
[349026545,1736941871465,-1203.26,0.0002435,2]
[349026546,1736941871475,-643.06,0.0002435,2]
[349026547,1736941871484,-740.16,0.0002435,2]
[349026548,1736941871494,-500.0,0.00024351,2]
[349026549,1736941871504,-1000.0,0.00024362,30]
[349026550,1736941871514,-786.43622933,0.000244,30]
[349026551,1736941871524,-338.57593899,0.0002442,2]
[349026552,1736941871533,-1000.0,0.00024447,30]
[349026553,1736941871543,-16827.46184776,0.0002445,2]
[349026554,1736941871553,-481.8426913,0.00024483,2]
[349026555,1736941871562,-2957.9923691,0.00024483,2]
[349026556,1736941871574,-55386.16711068,0.000245,2]
[349026557,1736941871708,-365357.05262245,0.000245,7]
[349026558,1736941871719,-4231.546979,0.000245,30]
[349026559,1736941871728,-2110.0,0.000245,2]
[349026560,1736941871739,-1000.0,0.00024531,30]
[349026561,1736941871749,-33223.0,0.00024534,2]
[349026562,1736941871758,-151.0,0.00024535,7]
[349026563,1736941871767,-151.0,0.00024535,7]
[349026564,1736941871777,-151.0,0.00024535,7]
[349026565,1736941871787,-258.618064,0.00024535,7]
[349026566,1736941871797,-823.870216,0.00024535,7]
[349026567,1736941871807,-823.870216,0.00024535,7]
[349026568,1736941871821,-555.559288,0.00024535,7]
[349026569,1736941871831,-195.777335,0.00024535,7]
[349026570,1736941871841,-195.777335,0.00024535,7]
[349026571,1736941871851,-151.0,0.00024535,7]
[349026572,1736941871861,-204.189998,0.00024535,7]
[349026573,1736941871871,-204.189998,0.00024535,7]
[349026574,1736941871881,-232.563728,0.00024535,7]
[349026575,1736941871893,-151.0,0.00024535,7]
[349026576,1736941871902,-556.399308,0.00024535,7]
[349026577,1736941871912,-556.399308,0.00024535,7]
[349026578,1736941871921,-151.0,0.00024535,7]
[349026579,1736941871931,-151.0,0.00024535,7]
[349026580,1736941871941,-151.0,0.00024535,7]
[349026581,1736941871950,-151.0,0.00024535,7]
[349026582,1736941871960,-208.471312,0.00024535,7]
[349026583,1736941871969,-5400.0,0.00024535,7]
[349026584,1736941871979,-5400.0,0.00024535,7]
[349026585,1736941871989,-151.0,0.00024535,7]
[349026586,1736941871999,-285.236722,0.00024535,7]
[349026587,1736941872008,-500.0,0.00024561,2]
[349026588,1736941872018,-481.8426913,0.00024583,2]
[349026589,1736941872028,-481.8426913,0.00024583,2]
[349026590,1736941872039,-481.8426913,0.00024583,2]
[349026591,1736941872049,-2051.4785175,0.00024583,2]
[349026592,1736941872059,-1144.9646658,0.00024583,2]
[349026593,1736941872072,-238.4508142,0.00024583,2]
[349026594,1736941872082,-619730.42212965,0.000246,2]
[349026595,1736941872101,-2480.74477818,0.000246,2]
[349026596,1736941872118,-500.0,0.00022159,2]
[349026597,1736941872134,-579.71084489,0.000246,2]
[349026598,1736941872146,-1919.64,0.000246,2]
[349026599,1736941872332,-285.82171714,0.0001942,2]
[349026600,1736941872344,-214.17828286,0.0001942,2]
[349026601,1736941872354,-500.0,0.00019693,2]
[349026602,1736941872363,-500.0,0.00019967,2]
[349026603,1736941872373,-500.0,0.00021758,2]
[349026604,1736941872382,-1212.50340066,0.000219,2]
[349026605,1736941872399,-500.71834008,0.000219,2]
[349026606,1736941872410,-8731.80204613,0.000219,2]
[349026607,1736941872420,-151.0,0.00022,7]
[349026608,1736941872430,-151.0,0.00022,7]
[349026609,1736941872440,-500.0,0.00022032,2]
[349026610,1736941872449,-500.0,0.00022306,2]
[349026611,1736941872458,-500.0,0.00022433,2]
[349026612,1736941872468,-500.0,0.00022707,2]
[349026613,1736941872478,-500.0,0.00022981,2]
[349026614,1736941872488,-500.0,0.00023255,2]
[349026615,1736941872498,-500.0,0.00023529,2]
[349026616,1736941872507,-151.0,0.0002361,7]
[349026617,1736941872517,-500.0,0.00023803,2]
[349026618,1736941872527,-500.0,0.00024077,2]
[349026619,1736941872537,-482.5,0.00024351,2]
[349026620,1736941872546,-1116.73868094,0.000246,2]
[349026621,1736941872558,-3718.06,0.000246,2]
[349026622,1736941872787,-153.0,0.00018549,2]
[349026623,1736941872796,-153.0,0.00018549,2]
[349026624,1736941872807,-153.0,0.00018549,2]
[349026625,1736941872816,-153.0,0.00018549,2]
[349026626,1736941872826,-153.0,0.00018549,2]
[349026627,1736941872835,-153.0,0.00018549,2]
[349026628,1736941872844,-153.0,0.00018549,2]
[349026629,1736941872853,-153.0,0.00018549,2]
[349026630,1736941872864,-153.0,0.00018549,2]
[349026631,1736941872874,-153.0,0.00018549,2]
[349026632,1736941872883,-153.0,0.00018549,2]
[349026633,1736941872894,-153.0,0.00018549,2]
[349026634,1736941872904,-500.0,0.00019418,2]
[349026635,1736941872914,-500.0,0.00020241,2]
[349026636,1736941872925,-153.962822,0.00020514,2]
[349026637,1736941872935,-500.0,0.00020515,2]
[349026638,1736941872944,-500.0,0.00020789,2]
[349026639,1736941872954,-500.0,0.00020999,2]
[349026640,1736941872964,-500.0,0.00020999,2]
[349026641,1736941872974,-153.962822,0.00021062,2]
[349026642,1736941872983,-625.18,0.00021063,2]
[349026643,1736941872993,-500.0,0.00021273,2]
[349026644,1736941873002,-500.0,0.00021273,2]
[349026645,1736941873012,-107.32118065,0.00021547,2]
[349026646,1736941873050,-392.67881935,0.00021547,2]
[349026647,1736941873060,-500.0,0.00021547,2]
[349026648,1736941873071,-153.962822,0.00021884,2]
[349026649,1736941873081,-153.962822,0.00022432,2]
[349026650,1736941873091,-545.11,0.0002258,2]
[349026651,1736941873100,-153.962822,0.0002298,2]
[349026652,1736941873110,-2068.85774264,0.000234,2]
[349026653,1736941873122,-626.98153394,0.000234,2]
[349026654,1736941873137,-2631.32905608,0.000234,2]
[349026655,1736941873152,-153.0,0.00018549,2]
[349026656,1736941873161,-5117.85545421,0.000234,2]
[349026657,1736941873171,-153.962822,0.00023802,2]
[349026658,1736941873181,-153.962822,0.0002435,2]
[349026659,1736941873191,-151.0,0.00024535,7]
[349026660,1736941873200,-9269.71890179,0.000246,2]
[349026661,1736941873213,-8785.57382083,0.000246,2]
[349026662,1736941873222,-375.46144289,0.000246,2]
[349026663,1736941873232,-10206.31504915,0.000246,2]
[349026675,1736943031911,-156.34,0.00010137,2]
[349026676,1736943031922,-319.72711185,0.00011,2]
[349026677,1736943031987,-230.27288815,0.00011,2]
[349026678,1736943031998,-187.16,0.00012329,2]
[349026679,1736943032009,-171.79210935,0.00013,2]
[349026680,1736943032022,-424.74074576,0.00013,2]
[349026681,1736943032035,-3.46714489,0.00013,2]
[349026682,1736943032046,-650.0,0.00015,2]
[349026683,1736943032057,-412.58,0.00016272,2]
[349026684,1736943032067,-483.95285513,0.00016745,4]
[349026685,1736943032147,-2192.24989712,0.00016745,4]
[349026686,1736943032158,-700.0,0.00017,2]
[349026687,1736943032168,-151.0,0.00017784,2]
[349026688,1736943032179,-452.02,0.00018,2]
[349026689,1736943032189,-151.41,0.00018192,2]
[349026690,1736943032200,-250.0,0.00018251,2]
[349026691,1736943032212,-250.0,0.00018379,2]
[349026692,1736943032223,-412.58,0.00018535,2]
[349026693,1736943032233,-250.0,0.00018641,2]
[349026694,1736943032244,-200.0,0.00018737,2]
[349026695,1736943032255,-2676.20275225,0.00018745,4]
[349026696,1736943032266,-750.0,0.00019,2]
[349026697,1736943032277,-507.3728702,0.00019015,2]
[349026698,1736943032287,-150.0,0.00019111,2]
[349026699,1736943032300,-2349.146,0.00019111,2]
[349026701,1736943032310,-174.579,0.00019111,2]
[349026703,1736943032320,-165.0,0.00019114,2]
[349026705,1736943032329,-500.0,0.00019115,2]
[349026707,1736943032339,-500.0,0.00019115,2]
[349026709,1736943032350,-500.0,0.00019115,2]
[349026710,1736943032361,-500.0,0.00019115,2]
[349026711,1736943032371,-500.0,0.00019115,2]
[349026712,1736943032382,-500.0,0.00019115,2]
[349026713,1736943032394,-500.0,0.00019115,2]
[349026714,1736943032404,-500.0,0.00019115,2]
[349026715,1736943032414,-500.0,0.00019115,2]
[349026716,1736943032425,-500.0,0.00019115,2]
[349026717,1736943032436,-500.0,0.00019115,2]
[349026719,1736943032446,-500.0,0.00019115,2]
[349026721,1736943032457,-500.0,0.00019115,2]
[349026723,1736943032467,-500.0,0.00019115,2]
[349026725,1736943032478,-150.0,0.00019213,2]
[349026727,1736943032488,-150.0,0.00019344,2]
[349026729,1736943032498,-535.70954898,0.00019418,2]
[349026731,1736943032509,-500.0,0.00019418,2]
[349026733,1736943032523,-500.0,0.00019418,2]
[349026736,1736943032534,-500.0,0.00019418,2]
[349026737,1736943032544,-500.0,0.00019418,2]
[349026740,1736943032558,-500.0,0.00019418,2]
[349026741,1736943032569,-500.0,0.00019418,2]
[349026742,1736943032580,-500.0,0.00019418,2]
[349026743,1736943032592,-500.0,0.00019418,2]
[349026744,1736943032603,-500.0,0.00019418,2]
[349026745,1736943032614,-500.0,0.00019418,2]
[349026746,1736943032625,-500.0,0.00019418,2]
[349026747,1736943032636,-503.29980166,0.00019418,2]
[349026748,1736943032647,-500.0,0.00019418,2]
[349026749,1736943032657,-500.0,0.00019418,2]
[349026750,1736943032666,-500.0,0.00019418,2]
[349026751,1736943032676,-500.0,0.00019418,2]
[349026752,1736943032688,-500.0,0.00019418,2]
[349026753,1736943032699,-500.0,0.00019418,2]
[349026754,1736943032710,-500.0,0.00019418,2]
[349026755,1736943032720,-500.0,0.00019418,2]
[349026756,1736943032731,-190.19,0.00019418,2]
[349026757,1736943032742,-300.0,0.00019418,2]
[349026758,1736943032752,-500.0,0.00019418,2]
[349026759,1736943032763,-500.0,0.00019418,2]
[349026760,1736943032773,-646.54133657,0.00019418,2]
[349026761,1736943032783,-500.0,0.00019418,2]
[349026762,1736943032793,-505.47771085,0.00019418,2]
[349026763,1736943032806,-500.0,0.00019418,2]
[349026764,1736943032816,-500.0,0.00019418,2]
[349026765,1736943032827,-500.0,0.00019418,2]
[349026766,1736943032838,-500.0,0.00019418,2]
[349026767,1736943032848,-502.90916982,0.00019418,2]
[349026768,1736943032860,-500.0,0.00019418,2]
[349026769,1736943032871,-500.0,0.00019418,2]
[349026770,1736943032881,-503.20406956,0.00019418,2]
[349026771,1736943032891,-507.36781816,0.00019418,2]
[349026772,1736943032902,-500.0,0.00019418,2]
[349026773,1736943032912,-500.0,0.00019418,2]
[349026774,1736943032922,-500.0,0.00019418,2]
[349026775,1736943032932,-503.29227347,0.00019418,2]
[349026776,1736943032943,-500.0,0.00019418,2]
[349026777,1736943032953,-500.0,0.00019418,2]